fUST/lending_fUST_20250821
["ID","MTS","AMOUNT","RATE_DAILY","PERIOD"]
[380376540,1755714639878,-300.0,0.00024825,2]
[380376541,1755714639887,-151.0,0.00024825,2]
[380376544,1755714639896,-300.0,0.00024825,2]
[380376545,1755714639905,-151.0,0.00024825,2]
[380376548,1755714639915,-300.0,0.00024825,2]
[380376550,1755714639925,-151.0,0.00024825,2]
[380376551,1755714639934,-300.0,0.00024825,2]
[380376554,1755714639944,-151.0,0.00024825,2]
[380376556,1755714639953,-303.37780865,0.00024825,2]
[380376558,1755714639962,-151.0,0.00024825,2]
[380376560,1755714639972,-500.0,0.00024873,2]
[380376562,1755714639983,-500.0,0.00024873,2]
[380376564,1755714639992,-500.67768814,0.00024873,2]
[380376566,1755714640001,-500.0,0.00024873,2]
[380376568,1755714640011,-501.70449007,0.00024873,2]
[380376570,1755714640021,-500.0,0.00024873,2]
[380376572,1755714640030,-250.0,0.00024873,2]
[380376574,1755714640040,-2264.10087164,0.0002488,2]
[380376576,1755714640049,-151.0,0.000249,7]
[380376578,1755714640058,-151.0,0.000249,7]
[380376580,1755714640069,-151.0,0.000249,7]
[380376581,1755714640079,-151.0,0.000249,7]
[380376583,1755714640088,-151.0,0.000249,7]
[380376585,1755714640097,-151.0,0.000249,7]
[380376587,1755714640106,-151.0,0.000249,7]
[380376589,1755714640116,-151.0,0.000249,7]
[380376591,1755714640124,-151.0,0.000249,7]
[380376593,1755714640134,-151.0,0.000249,7]
[380376595,1755714640144,-151.0,0.000249,7]
[380376597,1755714640153,-151.0,0.000249,7]
[380376599,1755714640162,-151.0,0.000249,7]
[380376610,1755714640249,-151.0,0.000249,7]
[380376612,1755714640270,-151.0,0.000249,7]
[380376615,1755714640279,-151.0,0.000249,7]
[380376617,1755714640289,-151.0,0.000249,7]
[380376618,1755714640298,-151.0,0.000249,7]
[380376620,1755714640307,-151.0,0.000249,7]
[380376622,1755714640316,-151.0,0.000249,7]
[380376624,1755714640325,-151.0,0.000249,7]
[380376626,1755714640335,-151.0,0.000249,7]
[380376629,1755714640344,-151.0,0.000249,7]
[380376630,1755714640353,-321.507334,0.000249,7]
[380376633,1755714640363,-321.507334,0.000249,7]
[380376634,1755714640372,-192350.466026,0.000249,2]
[380376636,1755714640382,-151.0,0.000249,7]
[380376638,1755714640391,-321.507334,0.000249,7]
[380376640,1755714640400,-321.507334,0.000249,7]
[380376642,1755714640410,-151.0,0.000249,7]
[380376645,1755714640422,-2347.87260389,0.00024935,2]
[380376646,1755714640431,-1500.0,0.00024968,2]
[380376649,1755714640440,-503.66116912,0.00024968,2]
[380376651,1755714640450,-1000.0,0.00024968,2]
[380376653,1755714640459,-500.0,0.00024968,2]
[380376654,1755714640468,-1500.0,0.00024968,2]
[380376656,1755714640477,-360.0,0.00024983,2]
[380376658,1755714640487,-2434.74389024,0.0002499,2]
[380376661,1755714640502,-973.0,0.00025018,2]
[380376662,1755714640511,-1653.87992263,0.00025045,2]
[380376664,1755714640520,-2524.82941417,0.00025045,2]
[380376666,1755714640530,-9465.31,0.000251,7]
[380376668,1755714640539,-2618.2481025,0.000251,2]
[380376670,1755714640549,-2715.12328229,0.00025155,2]
[380376672,1755714640559,-2815.58284374,0.0002521,2]
[380376674,1755714640568,-2919.75940895,0.00025265,2]
[380376677,1755714640578,-1429.10991589,0.0002532,2]
[380376679,1755714640587,-727.6832082,0.00025416,2]
[380376680,1755714640597,-1000.0,0.00025421,2]
[380376682,1755714640606,-1000.0,0.00025421,2]
[380376684,1755714640615,-151.0,0.00025421,7]
[380376686,1755714640624,-151.0,0.00025421,7]
[380376688,1755714640633,-191.973122,0.00025421,7]
[380376690,1755714640643,-191.973122,0.00025421,7]
[380376692,1755714640652,-191.973122,0.00025421,7]
[380376694,1755714640662,-151.0,0.00025421,7]
[380376696,1755714640671,-191.973122,0.00025421,7]
[380376698,1755714640680,-151.0,0.00025421,7]
[380376700,1755714640690,-151.0,0.00025421,7]
[380376702,1755714640699,-900.0,0.00025469,3]
[380376704,1755714640709,-22230.22,0.000255,2]
[380376706,1755714640719,-400.83154684,0.00025513,3]
[380376707,1755714640728,-196.5037321,0.00025516,2]
[380376708,1755714640738,-2000.0,0.00025516,2]
[380376709,1755714640747,-460.0,0.00025531,2]
[380376710,1755714640759,-404.9231166,0.00025589,2]
[380376711,1755714640769,-581.0009137,0.00025589,2]
[380376712,1755714640779,-227.7771674,0.00025589,2]
[380376713,1755714640788,-306.0,0.00025589,2]
[380376714,1755714640798,-587.0,0.00025752,2]
[380376715,1755714640807,-2200.0,0.00025855,2]
[380376716,1755714640816,-817.648,0.00025855,2]
[380376717,1755714640826,-926.27997741,0.00025856,2]
[380376718,1755714640835,-926.27997741,0.00025956,2]
[380376719,1755714640844,-1112.2295198,0.00025968,2]
[380376720,1755714640853,-204.64372186,0.00025973,2]
[380376721,1755714640863,-1000.0,0.00025973,2]
[380376722,1755714640872,-4046.15655394,0.00026,2]
[380376723,1755714640882,-2000.0,0.00026,2]
[380376724,1755714640891,-1038.98,0.00026,30]
[380376725,1755714640900,-3997.96,0.00026,7]
[380376726,1755714640909,-1847.17576609,0.00026,7]
[380376727,1755714640918,-1807.49331209,0.00026,30]
[380376728,1755714640927,-1000475.44600154,0.00026,15]
[380376729,1755714640937,-151.0,0.00026,7]
[380376730,1755714640946,-151.0,0.00026,7]
[380376731,1755714640955,-191.973122,0.00026,7]
[380376732,1755714640964,-191.973122,0.00026,7]
[380376733,1755714640973,-191.973122,0.00026,7]
[380376734,1755714640982,-151.0,0.00026,7]
[380376735,1755714640992,-191.973122,0.00026,7]
[380376736,1755714641001,-151.0,0.00026,7]
[380376737,1755714641012,-151.0,0.00026,7]
[380376738,1755714641022,-926.27997741,0.00026056,2]
[380376739,1755714641031,-2500.0,0.00026064,2]
[380376741,1755714641040,-560.0,0.00026079,2]
[380376742,1755714641049,-1653.87992263,0.00026094,2]
[380376744,1755714641058,-1038.98,0.0002613,30]
[380376747,1755714641069,-926.27997741,0.00026156,2]
[380376749,1755714641078,-191.29669983,0.0002616,2]
[380376751,1755714641089,-17499.24531361,0.00026194,2]
[380376752,1755714641099,-151.0,0.00026194,2]
[380376755,1755714641109,-926.27997741,0.00026256,2]
[380376757,1755714641118,-1038.98,0.0002626,30]
[380376758,1755714641127,-603.78834712,0.00026261,2]
[380376760,1755714641138,-386.7798227,0.00026274,2]
[380376763,1755714641148,-386.7798227,0.00026274,2]
[380376764,1755714641158,-386.7798227,0.00026274,2]
[380376766,1755714641167,-386.7798227,0.00026274,2]
[380376768,1755714641176,-386.7798227,0.00026274,2]
[380376770,1755714641185,-775.94,0.000263,7]
[380376772,1755714641195,-926.27997741,0.00026356,2]
[380376775,1755714641204,-1038.98,0.0002639,30]
[380376777,1755714641214,-293.9452039,0.00026411,2]
[380376779,1755714641224,-160.8718701,0.00026411,2]
[380376780,1755714641233,-581.0009137,0.00026411,2]
[380376782,1755714641242,-160.8718701,0.00026411,2]
[380376784,1755714641251,-293.9452039,0.00026411,2]
[380376786,1755714641261,-581.0009137,0.00026411,2]
[380376788,1755714641270,-293.9452039,0.00026411,2]
[380376790,1755714641279,-160.8718701,0.00026411,2]
[380376792,1755714641288,-581.0009137,0.00026411,2]
[380376794,1755714641298,-293.9452039,0.00026411,2]
[380376796,1755714641307,-160.8718701,0.00026411,2]
[380376798,1755714641317,-581.0009137,0.00026411,2]
[380376800,1755714641326,-581.0009137,0.00026411,2]
[380376802,1755714641336,-160.8718701,0.00026411,2]
[380376804,1755714641345,-581.0009137,0.00026411,2]
[380376806,1755714641355,-160.8718701,0.00026411,2]
[380376808,1755714641363,-160.8718701,0.00026411,2]
[380376810,1755714641372,-581.0009137,0.00026411,2]
[380376812,1755714641382,-160.8718701,0.00026411,2]
[380376814,1755714641392,-581.0009137,0.00026411,2]
[380376816,1755714641401,-160.8718701,0.00026411,2]
[380376818,1755714641411,-581.0009137,0.00026411,2]
[380376820,1755714641420,-581.0009137,0.00026411,2]
[380376822,1755714641429,-160.8718701,0.00026411,2]
[380376824,1755714641438,-581.0009137,0.00026411,2]
[380376826,1755714641447,-160.8718701,0.00026411,2]
[380376828,1755714641456,-293.9452039,0.00026411,2]
[380376830,1755714641465,-581.0009137,0.00026411,2]
[380376831,1755714641473,-306.0,0.00026411,2]
[380376833,1755714641483,-293.9452039,0.00026411,2]
[380376835,1755714641493,-160.8718701,0.00026411,2]
[380376837,1755714641503,-581.0009137,0.00026411,2]
[380376839,1755714641512,-160.8718701,0.00026411,2]
[380376841,1755714641522,-293.9452039,0.00026411,2]
[380376843,1755714641531,-581.0009137,0.00026411,2]
[380376845,1755714641540,-293.9452039,0.00026411,2]
[380376847,1755714641549,-160.8718701,0.00026411,2]
[380376849,1755714641558,-581.0009137,0.00026411,2]
[380376851,1755714641567,-160.8718701,0.00026411,2]
[380376853,1755714641576,-809.3236502,0.00026411,2]
[380376854,1755714641585,-160.8718701,0.00026411,2]
[380376856,1755714641594,-160.8718701,0.00026411,2]
[380376858,1755714641604,-160.8718701,0.00026411,2]
[380376860,1755714641613,-2073.39597066,0.00026424,2]
[380376862,1755714641622,-926.27997741,0.00026456,2]
[380376864,1755714641631,-9465.31,0.000265,7]
[380376866,1755714641641,-1038.98,0.0002652,30]
[380376868,1755714641650,-1019.39024622,0.00026521,2]
[380376871,1755714641659,-200.0,0.0002654,14]
[380376872,1755714641668,-926.27997741,0.00026556,2]
[380376874,1755714641677,-3000.0,0.00026612,2]
[380376876,1755714641686,-660.0,0.00026627,2]
[380376878,1755714641696,-1038.98,0.0002665,30]
[380376880,1755714641707,-926.27997741,0.00026656,2]
[380376882,1755714641716,-200.0,0.0002667,16]
[380376884,1755714641725,-151.0,0.000267,14]
[380376886,1755714641735,-500.0,0.00026798,2]
[380376888,1755714641744,-500.0,0.00026873,2]
[380376890,1755714641754,-500.0,0.00026885,2]
[380376892,1755714641763,-22230.22,0.000269,2]
[380376894,1755714641773,-1162.0018274,0.00026914,2]
[380376896,1755714641782,-581.0009137,0.00026914,2]
[380376898,1755714641791,-1162.0018274,0.00026914,2]
[380376900,1755714641800,-581.0009137,0.00026914,2]
[380376902,1755714641810,-581.0009137,0.00026914,2]
[380376904,1755714641819,-800.0,0.00026917,2]
[380376906,1755714641829,-243.2153682,0.00026921,2]
[380376908,1755714641839,-153.0,0.00026921,2]
[380376910,1755714641849,-153.0,0.00026921,2]
[380376912,1755714641858,-581.0009137,0.00026921,2]
[380376914,1755714641867,-581.0009137,0.00026921,2]
[380376916,1755714641876,-581.0009137,0.00026921,2]
[380376918,1755714641886,-581.0009137,0.00026921,2]
[380376920,1755714641896,-580.3025508,0.00026927,2]
[380376922,1755714641906,-800.0,0.0002694,2]
[380376924,1755714641916,-724.55578329,0.00026946,2]
[380376926,1755714641925,-500.0,0.0002696,2]
[380376928,1755714641934,-1047.0,0.00027,2]
[380376930,1755714641943,-417.15472785,0.00027,3]
[380376932,1755714641952,-296.76110564,0.00027,60]
[380376934,1755714641961,-160.45099331,0.00027,2]
[380376936,1755714641970,-718.15036961,0.00027,45]
[380376938,1755714641979,-500.0,0.00027023,2]
[380376940,1755714641988,-1000.0,0.00027028,2]
[380376942,1755714641998,-500.0,0.00027062,2]
[380376944,1755714642008,-844.05985274,0.000271,3]
[380376946,1755714642017,-232.24568399,0.000271,3]
[380376947,1755714642026,-528.77847288,0.000271,3]
[380376949,1755714642035,-1000.0,0.00027121,2]
[380376951,1755714642045,-500.0,0.00027125,2]
[380376953,1755714642054,-1000.0,0.00027134,2]
[380376955,1755714642064,-1653.87992263,0.00027143,2]
[380376957,1755714642076,-190.0,0.00027145,2]
[380376959,1755714642085,-800.0,0.00027148,2]
[380376961,1755714642094,-3500.0,0.0002716,2]
[380376963,1755714642103,-151.0,0.00027173,2]
[380376965,1755714642114,-151.0,0.00027173,2]
[380376967,1755714642122,-151.0,0.00027173,2]
[380376969,1755714642132,-151.0,0.00027173,2]
[380376971,1755714642143,-151.0,0.00027173,2]
[380376973,1755714642152,-151.0,0.00027173,2]
[380376975,1755714642162,-151.0,0.00027173,2]
[380376977,1755714642171,-151.13703646,0.00027173,2]
[380376979,1755714642181,-151.0,0.00027173,2]
[380376981,1755714642190,-151.37947602,0.00027173,2]
[380376983,1755714642199,-151.0,0.00027173,2]
[380376985,1755714642210,-218.11712398,0.00027173,2]
[380376987,1755714642219,-151.0,0.00027173,2]
[380376989,1755714642230,-500.0,0.00027173,2]
[380376991,1755714642239,-500.0,0.00027173,2]
[380376993,1755714642249,-151.0,0.00027173,2]
[380377004,1755714642342,-226.8933604,0.00027173,2]
[380377006,1755714642351,-151.58071857,0.00027173,2]
[380377009,1755714642360,-151.0,0.00027173,2]
[380377012,1755714642370,-151.93370689,0.00027173,2]
[380377014,1755714642379,-213.71622119,0.00027173,2]
[380377017,1755714642388,-500.0,0.00027173,2]
[380377019,1755714642397,-760.0,0.00027175,2]
[380377022,1755714642407,-293.85068442,0.00027178,2]
[380377025,1755714642416,-203.97,0.000272,2]
[380377027,1755714642425,-1558.215259,0.000272,2]
[380377028,1755714642434,-500.0,0.00027205,2]
[380377030,1755714642443,-1000.0,0.00027209,2]
[380377032,1755714642452,-500.0,0.00027211,2]
[380377034,1755714642461,-500.0,0.00027214,2]
[380377036,1755714642471,-800.0,0.00027215,2]
[380377038,1755714642480,-169.586895,0.00027226,7]
[380377040,1755714642489,-151.0,0.00027226,7]
[380377042,1755714642498,-151.0,0.00027226,7]
[380377044,1755714642508,-256.892,0.00027226,7]
[380377046,1755714642518,-300.0,0.00027232,2]
[380377048,1755714642527,-1013.23298153,0.00027232,2]
[380377050,1755714642536,-1162.0018274,0.00027233,2]
[380377052,1755714642546,-499.3,0.00027233,2]
[380377054,1755714642555,-353.28192114,0.00027234,2]
[380377056,1755714642564,-174.166731,0.00027235,7]
[380377058,1755714642573,-151.0,0.00027235,7]
[380377060,1755714642582,-151.0,0.00027235,7]
[380377062,1755714642592,-151.981243,0.00027235,7]
[380377064,1755714642601,-151.0,0.00027235,7]
[380377066,1755714642612,-151.0,0.00027235,7]
[380377068,1755714642621,-151.0,0.00027235,7]
[380377070,1755714642630,-151.0,0.00027235,7]
[380377072,1755714642640,-151.0,0.00027235,7]
[380377074,1755714642649,-151.0,0.00027235,7]
[380377076,1755714642658,-151.0,0.00027235,7]
[380377078,1755714642667,-151.0,0.00027235,7]
[380377080,1755714642677,-151.0,0.00027235,7]
[380377082,1755714642686,-151.0,0.00027235,7]
[380377084,1755714642696,-151.0,0.00027235,7]
[380377086,1755714642706,-151.0,0.00027235,7]
[380377088,1755714642715,-151.0,0.00027235,7]
[380377090,1755714642724,-151.0,0.00027235,7]
[380377092,1755714642733,-151.0,0.00027235,7]
[380377094,1755714642742,-376.45193123,0.0002724,5]
[380377096,1755714642751,-500.0,0.0002724,5]
[380377098,1755714642760,-500.0,0.0002724,5]
[380377099,1755714642770,-500.0,0.0002724,20]
[380377101,1755714642779,-180.67183153,0.00027242,2]
[380377103,1755714642789,-1762.0,0.00027242,3]
[380377105,1755714642799,-1762.0,0.00027242,3]
[380377107,1755714642808,-1762.0,0.00027242,3]
[380377109,1755714642818,-481.97188186,0.00027242,2]
[380377111,1755714642827,-1925.95963992,0.00027242,2]
[380377113,1755714642836,-154.58960332,0.00027242,3]
[380377115,1755714642845,-500.0,0.00027242,2]
[380377117,1755714642855,-151.0,0.00027243,7]
[380377119,1755714642864,-151.0,0.00027243,7]
[380377121,1755714642874,-151.0,0.00027243,7]
[380377123,1755714642883,-151.0,0.00027243,7]
[380377125,1755714642892,-321.507334,0.00027243,7]
[380377127,1755714642901,-321.507334,0.00027243,7]
[380377129,1755714642910,-151.0,0.00027243,7]
[380377131,1755714642920,-321.507334,0.00027243,7]
[380377133,1755714642929,-321.507334,0.00027243,7]
[380377135,1755714642938,-151.0,0.00027243,7]
[380377137,1755714642947,-151.0,0.00027243,7]
[380377139,1755714642957,-151.0,0.00027243,7]
[380377141,1755714642966,-191.973122,0.00027243,7]
[380377143,1755714642975,-191.973122,0.00027243,7]
[380377145,1755714642985,-191.973122,0.00027243,7]
[380377147,1755714642995,-191.973122,0.00027243,7]
[380377149,1755714643004,-191.973122,0.00027243,7]
[380377151,1755714643015,-151.0,0.00027243,7]
[380377153,1755714643024,-191.973122,0.00027243,7]
[380377155,1755714643034,-155.981478,0.00027243,7]
[380377157,1755714643043,-191.973122,0.00027243,7]
[380377160,1755714643053,-191.973122,0.00027243,7]
[380377164,1755714643063,-151.0,0.00027243,7]
[380377167,1755714643076,-151.0,0.00027243,7]
[380377169,1755714643085,-151.0,0.00027243,7]
[380377172,1755714643094,-151.0,0.00027243,7]
[380377175,1755714643104,-249345.78469254,0.00027243,20]
[380377181,1755714643148,-6625.48942021,0.00027243,20]
[380377183,1755714643160,-757.31583509,0.00027243,20]
[380377185,1755714643172,-543.74721122,0.00027243,20]
[380377195,1755714643255,-525.2,0.00025018,2]
[380377197,1755714643265,-12576.79,0.00027243,20]
[380377199,1755714643281,-34652.55137888,0.00027243,20]
[380377276,1755714645819,-1847.72887281,0.0002399,2]
[380377277,1755714645837,-2133.71622119,0.0002399,2]
[380377304,1755714659963,325970.07824428,0.00027243,60]
[380377309,1755714847971,158.880409,0.00013699,2]
[380377318,1755715598095,-216.20251041,0.000199,2]
[380377319,1755715637585,-157.08965529,0.000199,2]
[380377320,1755715637607,-333.94276498,0.00020835,2]
[380377321,1755715643087,-39.34940065,0.00020835,2]
[380377322,1755715643111,-151.0,0.000214,4]
[380377323,1755715643134,-380.71185823,0.00021573,2]
[380377329,1755715749090,-294.0,0.000199,2]
[380377370,1755715832074,-133.97417889,0.000199,2]
[380377373,1755715832094,-427.97417863,0.00020835,2]
[380377375,1755715832105,-500.0,0.00020973,2]
[380377377,1755715832117,-500.0,0.00020973,2]
[380377379,1755715832127,-500.0,0.00020973,2]
[380377381,1755715832137,-1200.0,0.00020989,2]
[380377383,1755715832147,-300.0,0.00020989,2]
[380377386,1755715832157,-13727.08290495,0.0002099,2]
[380377502,1755715838094,-8380.87082365,0.0002099,2]
[380377504,1755715838105,-865.11273503,0.0002099,2]
[380377506,1755715838119,-11261.66351418,0.0002099,2]
[380377509,1755715838133,-1474.14023591,0.0002099,2]
[380377511,1755715838149,-64291.12978628,0.0002099,2]
[380377513,1755715838158,-1000.0,0.00021521,2]
[380377515,1755715838167,-119.28814177,0.00021573,2]
[380377517,1755715838177,-151.0,0.000217,3]
[380377519,1755715838186,-504.46079045,0.00021873,2]
[380377521,1755715838195,-50000.0,0.00021873,2]
[380377523,1755715838204,-727.6832082,0.0002189,2]
[380377525,1755715838213,-2030.39677352,0.0002189,2]
[380377527,1755715838222,-1006.22,0.00021898,2]
[380377529,1755715838231,-1006.22,0.00021898,2]
[380377531,1755715838241,-1006.22,0.00021898,2]
[380377533,1755715838249,-1006.22,0.00021898,2]
[380377535,1755715838259,-1006.22,0.00021898,2]
[380377537,1755715838268,-1006.22,0.00021899,2]
[380377539,1755715838278,-1006.22,0.00021899,2]
[380377541,1755715838287,-1006.22,0.00021899,2]
[380377543,1755715838296,-1006.22,0.00021899,2]
[380377546,1755715838307,-1006.22,0.00021899,2]
[380377549,1755715838316,-1006.22,0.00021899,2]
[380377552,1755715838326,-1006.22,0.00021899,2]
[380377554,1755715838335,-1006.22,0.00021899,2]
[380377556,1755715838344,-1006.22,0.00021899,2]
[380377558,1755715838354,-1006.22,0.00021899,2]
[380377560,1755715838363,-1006.22,0.00021899,2]
[380377562,1755715838375,-1006.22,0.00021899,2]
[380377565,1755715838387,-1006.22,0.00021899,2]
[380377567,1755715838400,-1006.22,0.00021899,2]
[380377568,1755715838409,-1006.22,0.00021899,2]
[380377570,1755715838419,-1006.22,0.00021899,2]
[380377573,1755715838429,-1006.22,0.00021899,2]
[380377575,1755715838439,-1006.22,0.00021899,2]
[380377577,1755715838450,-1006.23346152,0.00021899,2]
[380377578,1755715838460,-151.0,0.000219,3]
[380377581,1755715838470,-158.880409,0.00021918,2]
[380377582,1755715838482,-160.0,0.00021968,3]
[380377585,1755715838492,-343.33067806,0.00021968,3]
[380377586,1755715838501,-528.77847288,0.00021968,3]
[380377589,1755715838511,-503.11918519,0.00021973,2]
[380377590,1755715838520,-500.0,0.00021973,2]
[380377593,1755715838534,-501.70449007,0.00021973,2]
[380377595,1755715838543,-503.38769744,0.00021973,2]
[380377597,1755715838552,-500.0,0.00021973,2]
[380377599,1755715838561,-500.0,0.00021973,2]
[380377601,1755715838571,-500.0,0.00021973,2]
[380377603,1755715838579,-500.0,0.00021973,2]
[380377605,1755715838590,-500.0,0.00021973,2]
[380377607,1755715838599,-500.0,0.00021973,2]
[380377609,1755715838609,-500.0,0.00021973,2]
[380377611,1755715838619,-500.0,0.00021973,2]
[380377613,1755715838629,-500.0,0.00021973,2]
[380377615,1755715838639,-500.67768814,0.00021973,2]
[380377617,1755715838649,-197.5264365,0.00021973,2]
[380377619,1755715838658,-500.0,0.00021973,2]
[380377621,1755715838668,-500.0,0.00021973,2]
[380377623,1755715838677,-501.34172822,0.00021973,2]
[380377625,1755715838687,-500.0,0.00021973,2]
[380377627,1755715838695,-500.43512046,0.00021973,2]
[380377629,1755715838705,-500.0,0.00021973,2]
[380377631,1755715838715,-500.0,0.00021976,2]
[380377633,1755715838724,-500.0,0.00021976,2]
[380377635,1755715838733,-430.15342263,0.00021976,2]
[380377637,1755715838743,-500.0,0.00021976,2]
[380377639,1755715838752,-500.0,0.00021976,2]
[380377641,1755715838761,-500.0,0.00021976,2]
[380377643,1755715838771,-500.0,0.00021976,2]
[380377645,1755715838780,-500.0,0.00021976,2]
[380377647,1755715838790,-500.0,0.00021976,2]
[380377649,1755715838799,-500.0,0.00021976,2]
[380377651,1755715838808,-500.0,0.00021976,2]
[380377653,1755715838818,-613.36978634,0.00021976,2]
[380377655,1755715838828,-500.0,0.00021976,2]
[380377657,1755715838837,-500.0,0.00021976,2]
[380377659,1755715838847,-603.98061879,0.00021976,2]
[380377661,1755715838856,-500.0,0.00021976,2]
[380377663,1755715838865,-413.69529475,0.00021976,2]
[380377664,1755715838875,-500.0,0.00021976,2]
[380377665,1755715838884,-424.00456809,0.00021976,2]
[380377667,1755715838894,-500.0,0.00021976,2]
[380377668,1755715838904,-500.0,0.00021976,2]
[380377670,1755715838913,-500.0,0.00021976,2]
[380377672,1755715838923,-437.65876281,0.00021976,2]
[380377674,1755715838933,-500.0,0.00021976,2]
[380377675,1755715838943,-500.0,0.00021976,2]
[380377676,1755715838953,-500.0,0.00021976,2]
[380377677,1755715838962,-500.0,0.00021976,2]
[380377678,1755715838973,-500.0,0.00021976,2]
[380377679,1755715838983,-500.0,0.00021976,2]
[380377680,1755715838993,-500.0,0.00021976,2]
[380377681,1755715839002,-500.0,0.00021976,2]
[380377682,1755715839012,-500.0,0.00021976,2]
[380377683,1755715839022,-500.0,0.00021976,2]
[380377684,1755715839031,-500.0,0.00021976,2]
[380377685,1755715839041,-319.66160088,0.00021976,2]
[380377686,1755715839051,-500.0,0.00021976,2]
[380377687,1755715839060,-500.0,0.00021976,2]
[380377688,1755715839070,-500.0,0.00021976,2]
[380377689,1755715839081,-500.0,0.00021976,2]
[380377690,1755715839091,-500.0,0.00021976,2]
[380377691,1755715839101,-500.0,0.00021976,2]
[380377692,1755715839111,-500.0,0.00021976,2]
[380377693,1755715839123,-500.0,0.00021976,2]
[380377694,1755715839134,-500.0,0.00021976,2]
[380377695,1755715839144,-500.0,0.00021976,2]
[380377696,1755715839153,-500.0,0.00021976,2]
[380377697,1755715839162,-500.0,0.00021976,2]
[380377698,1755715839172,-500.0,0.00021976,2]
[380377699,1755715839181,-500.0,0.00021976,2]
[380377700,1755715839190,-500.0,0.00021976,2]
[380377701,1755715839199,-500.0,0.00021976,2]
[380377702,1755715839209,-500.0,0.00021976,2]
[380377703,1755715839219,-500.0,0.00021976,2]
[380377704,1755715839228,-500.0,0.00021977,2]
[380377705,1755715839237,-370000.0,0.00021978,2]
[380377706,1755715839247,-12687.94051737,0.00022,7]
[380377707,1755715839256,-23278.05,0.00022,2]
[380377708,1755715839266,-1065.19,0.00022,7]
[380377709,1755715839275,-10199.69,0.00022,7]
[380377710,1755715839284,-5417.28,0.00022,7]
[380377711,1755715839293,-500.0,0.00022068,2]
[380377712,1755715839302,-7940.35501214,0.00022078,2]
[380377713,1755715839311,-500.0,0.00022121,2]
[380377714,1755715839321,-151.0,0.000222,6]
[380377715,1755715839330,-500.0,0.00022251,2]
[380377716,1755715839340,-300.0,0.00022336,20]
[380377717,1755715839349,-151.0,0.000224,9]
[380377718,1755715839358,-1000.0,0.00022521,2]
[380377719,1755715839369,-1000.0,0.00022521,2]
[380377720,1755715839378,-500.0,0.00022521,2]
[380377721,1755715839387,-1000.0,0.00022521,2]
[380377722,1755715839397,-500.0,0.00022521,2]
[380377723,1755715839411,-1000.0,0.00022521,2]
[380377724,1755715839422,-500.0,0.00022521,2]
[380377725,1755715839431,-500.0,0.00022525,2]
[380377726,1755715839445,-2030.39677348,0.00022618,2]
[380377727,1755715839457,-151.0,0.000227,7]
[380377728,1755715839468,-500.0,0.00022799,2]
[380377729,1755715839478,-420.0,0.00022832,2]
[380377730,1755715839489,-298.00612635,0.00022842,2]
[380377731,1755715839499,-151.0,0.000229,10]
[380377732,1755715839508,-160.0,0.0002294,2]
[380377733,1755715839518,-528.77847288,0.0002299,2]
[380377734,1755715839528,-160.0,0.0002299,2]
[380377735,1755715839537,-160.0,0.00023,3]
[380377736,1755715839547,-844.05985274,0.00023,3]
[380377737,1755715839556,-160.0,0.00023,3]
[380377738,1755715839565,-1000.55433446,0.00023042,2]
[380377739,1755715839574,-1003.66116912,0.00023068,2]